bitfinex/quotes_BTCUSD_20241022
["timestamp","ask_amount","ask_price","bid_price","bid_amount"]
[1729586907970,0.267904,67157.0,67156.0,0.001826]
[1729586908156,0.281904,67157.0,67156.0,0.001826]
[1729586909054,0.267904,67157.0,67156.0,0.000826]
[1729586909496,0.181904,67157.0,67156.0,0.001826]
[1729586909713,0.281904,67157.0,67156.0,0.001826]
[1729586909932,0.46386315,67157.0,67156.0,0.001826]
[1729586912144,0.286904,67157.0,67156.0,0.001826]
[1729586912374,0.281904,67157.0,67156.0,0.001826]
[1729586913008,0.267904,67157.0,67156.0,0.000826]
[1729586913221,0.281904,67157.0,67156.0,0.001826]
[1729586913859,0.267904,67157.0,67156.0,0.000826]
[1729586914506,0.253904,67157.0,67156.0,0.000826]
[1729586914908,0.267904,67157.0,67156.0,0.000826]
[1729586915103,0.253904,67157.0,67156.0,0.000826]
[1729586915386,0.262904,67157.0,67156.0,0.001826]
[1729586915664,0.272904,67157.0,67156.0,0.002826]
[1729586916099,0.272904,67157.0,67156.0,0.001826]
[1729586916100,0.263904,67157.0,67156.0,0.001826]
[1729586916312,0.272904,67157.0,67156.0,0.002826]
[1729586916741,0.158904,67157.0,67156.0,0.001826]
[1729586916964,0.158904,67157.0,67156.0,0.100026]
[1729586917183,0.158904,67157.0,67156.0,0.101026]
[1729586917184,0.167904,67157.0,67156.0,0.101026]
[1729586917821,0.157904,67157.0,67156.0,0.107711]
[1729586918291,0.154904,67157.0,67156.0,0.099026]
[1729586918512,0.148904,67157.0,67156.0,0.099026]
[1729586918723,0.154904,67157.0,67156.0,0.100026]
[1729586918928,0.159904,67157.0,67156.0,0.100026]
[1729586919136,0.153904,67157.0,67156.0,0.099026]
[1729586919572,0.157904,67157.0,67156.0,0.099026]
[1729586920896,0.157904,67157.0,67156.0,0.106711]
[1729586921323,0.009,67157.0,67156.0,0.255618]
[1729586921544,0.009,67157.0,67156.0,0.53857356]
[1729586921764,0.009,67157.0,67156.0,0.48287715]
[1729586922227,0.005,67157.0,67156.0,0.48287715]
[1729586922667,0.005,67157.0,67156.0,0.63287715]
[1729586922668,0.004,67157.0,67156.0,0.63287715]
[1729586923105,0.001,67157.0,67156.0,0.63287715]
[1729586923380,0.002,67157.0,67156.0,0.64187715]
[1729586924300,0.001,67157.0,67156.0,0.64187715]
[1729586924509,0.002,67157.0,67156.0,0.64787715]
[1729586924985,0.28692819,67157.0,67156.0,0.164511]
[1729586925412,0.28692819,67157.0,67156.0,0.167511]
[1729586925653,0.28792819,67157.0,67156.0,0.172511]
[1729586925867,0.28792819,67157.0,67156.0,0.163511]
[1729586925868,0.149904,67157.0,67156.0,0.163511]
[1729586926080,0.148904,67157.0,67156.0,0.158511]
[1729586926299,0.149904,67157.0,67156.0,0.164511]
[1729586926739,0.148904,67157.0,67156.0,0.158511]
[1729586927188,0.152904,67157.0,67156.0,0.158511]
[1729586927372,0.153904,67157.0,67156.0,0.163511]
[1729586927838,0.004,67157.0,67156.0,0.158511]
[1729586928053,0.004,67157.0,67156.0,0.159511]
[1729586928054,0.157904,67157.0,67156.0,0.159511]
[1729586928302,0.153904,67157.0,67156.0,0.158511]
[1729586928719,0.168904,67157.0,67156.0,0.160511]
[1729586929145,0.161904,67157.0,67156.0,0.159511]
[1729586929580,0.168904,67157.0,67156.0,0.160511]
[1729586930664,0.168904,67157.0,67156.0,0.152826]
[1729586931946,0.155904,67157.0,67156.0,0.151826]
[1729586932157,0.148904,67157.0,67156.0,0.151826]
[1729586932385,0.172904,67157.0,67156.0,0.152826]
[1729586932839,0.20620182,67157.0,67156.0,0.151826]
[1729586933073,0.24335073,67157.0,67156.0,0.151826]
[1729586933304,0.59464856,67157.0,67156.0,0.152826]
[1729586933533,0.61986315,67157.0,67156.0,0.151826]
[1729586933748,0.63286315,67157.0,67156.0,0.151826]
[1729586934396,0.63486315,67157.0,67156.0,0.151826]
[1729586934637,0.62186315,67157.0,67156.0,0.151826]
[1729586934868,0.62486315,67157.0,67156.0,0.150826]
[1729586935055,0.7603683,67157.0,67156.0,0.150826]
[1729586935292,0.7733683,67157.0,67156.0,0.150826]
[1729586935509,0.63786315,67157.0,67156.0,0.150826]
[1729586935933,0.62486315,67157.0,67156.0,0.150826]
[1729586936405,0.62286315,67157.0,67156.0,0.150826]
[1729586936615,0.43381497,67157.0,67156.0,0.150826]
[1729586936837,0.41081497,67157.0,67156.0,0.150826]
[1729586937047,0.291904,67157.0,67156.0,0.150826]
[1729586937261,0.277904,67157.0,67156.0,0.150826]
[1729586938198,0.291904,67157.0,67156.0,0.150826]
[1729586938619,0.2834684,67157.0,67156.0,0.150826]
[1729586938828,0.2974684,67157.0,67156.0,0.150826]
[1729586940742,0.286904,67157.0,67156.0,0.150826]
[1729586940952,0.39273087,67157.0,67156.0,0.150826]
[1729586941372,0.281904,67157.0,67156.0,0.150826]
[1729586941578,0.34840814,67157.0,67156.0,0.150826]
[1729586941797,0.32624483,67157.0,67156.0,0.15887001]
[1729586942222,0.32624483,67157.0,67156.0,0.150826]
[1729586942443,0.32040814,67157.0,67156.0,0.150826]
[1729586942647,0.35657686,67157.0,67156.0,0.150826]
[1729586942828,0.267904,67157.0,67156.0,0.150826]
[1729586943290,0.37875089,67157.0,67156.0,0.150826]
[1729586943500,0.37874917,67157.0,67156.0,0.150826]
[1729586943714,0.267904,67157.0,67156.0,0.150826]
[1729586943949,0.44486315,67157.0,67156.0,0.150826]
[1729586944166,0.57087736,67157.0,67156.0,0.150826]
[1729586944373,0.46586315,67157.0,67156.0,0.150826]
[1729586944795,0.43786315,67157.0,67156.0,0.150826]
[1729586945045,0.46586315,67157.0,67156.0,0.150826]
[1729586945263,0.314904,67157.0,67156.0,0.150826]
[1729586945926,0.328904,67157.0,67156.0,0.150826]
[1729586946146,0.318904,67157.0,67156.0,0.150826]
[1729586946793,0.267904,67157.0,67156.0,0.150826]
[1729586947867,0.281904,67157.0,67156.0,0.150826]
[1729586948079,0.267904,67157.0,67156.0,0.150826]
[1729586950306,0.253904,67157.0,67156.0,0.150826]
[1729586950514,0.266904,67157.0,67156.0,0.150826]
[1729586950731,0.280904,67157.0,67156.0,0.150826]
[1729586951425,0.24749787,67157.0,67156.0,0.150826]
[1729586951660,0.22530261,67157.0,67156.0,0.150826]
[1729586951846,0.180904,67157.0,67156.0,0.150826]
[1729586952112,0.180904,67157.0,67156.0,0.1588778]
[1729586953066,0.253904,67157.0,67156.0,0.1588778]
[1729586953276,0.258904,67157.0,67156.0,0.1588778]
[1729586953492,0.257904,67157.0,67156.0,0.1588778]
[1729586953925,0.262904,67157.0,67156.0,0.1588778]
[1729586954367,0.258904,67157.0,67156.0,0.1588778]
[1729586954799,0.262904,67157.0,67156.0,0.1588778]
[1729586955223,0.257904,67157.0,67156.0,0.1588778]
[1729586955433,0.009,67157.0,67156.0,0.1588778]
[1729586955642,0.009,67157.0,67156.0,0.38323695]
[1729586956066,0.009,67157.0,67156.0,0.53214395]
[1729586956494,0.009,67157.0,67156.0,0.62494395]
[1729586957195,0.009,67157.0,67156.0,0.47603695]
[1729586957418,0.005,67157.0,67156.0,0.47603695]
[1729586957641,0.148904,67157.0,67156.0,0.47603695]
[1729586958026,0.149904,67157.0,67156.0,0.47603695]
[1729586958086,0.148904,67157.0,67156.0,0.47603695]
[1729586959110,0.1489,67159.0,67156.0,0.47603695]
[1729586959332,0.297793,67161.0,67157.0,0.14895915]
[1729586959579,0.297788,67162.0,67157.0,0.14895915]
[1729586959836,0.148896,67161.0,67157.0,0.15694454]
[1729586960060,0.148902,67158.0,67157.0,0.15694454]
[1729586960318,0.148898,67160.0,67157.0,0.15694454]
[1729586960563,0.297794,67161.0,67157.0,0.15694454]
[1729586960800,0.005,67163.0,67157.0,0.15694454]
[1729586960801,0.152895,67162.0,67157.0,0.15694454]
[1729586961039,0.007,67162.0,67158.0,0.148901]
[1729586961288,0.007,67162.0,67159.0,0.14895915]
[1729586961532,0.004,67162.0,67159.0,0.15693586]
[1729586961788,0.004,67161.0,67159.0,0.15693586]
[1729586962261,0.152897,67161.0,67159.0,0.15693586]
[1729586962721,0.148898,67160.0,67159.0,0.15693586]
[1729586963508,0.446681,67162.0,67159.0,0.15693586]
[1729586963729,0.148898,67160.0,67159.0,0.15693586]
[1729586964654,0.0138619,67161.0,67159.0,0.30583486]
[1729586964897,0.148895,67162.0,67159.0,0.15693586]
[1729586965130,0.446675,67163.0,67159.0,0.15693586]
[1729586965368,0.003,67160.0,67159.0,0.15693586]
[1729586966526,0.148897,67161.0,67159.0,0.15693586]
[1729586966770,0.148898,67160.0,67159.0,0.15693586]
[1729586967006,0.003,67161.0,67159.0,0.15693586]
[1729586967251,0.004,67160.0,67159.0,0.15693586]
[1729586967486,0.11551498,67165.0,67159.0,0.15693586]
[1729586967736,0.002,67160.0,67159.0,0.15693586]
[1729586968480,0.004,67161.0,67159.0,0.15693586]
[1729586968830,0.003,67160.0,67159.0,0.15693586]
[1729586970183,0.003,67160.0,67159.0,0.48533586]
[1729586970643,0.005,67160.0,67159.0,0.48533586]
[1729586971528,0.003,67160.0,67159.0,0.48533586]
[1729586971749,0.148898,67160.0,67159.0,0.33643586]
[1729586971998,0.149898,67160.0,67159.0,0.33643586]
[1729586972225,0.001,67160.0,67159.0,0.33643586]
[1729586972438,0.149898,67160.0,67159.0,0.33643586]
[1729586973103,0.148898,67160.0,67159.0,0.33643586]
[1729586973317,0.148898,67160.0,67159.0,0.1795]
[1729586973535,0.148904,67157.0,67156.0,0.150826]
[1729586975315,0.149904,67157.0,67156.0,0.150826]
[1729586975534,0.148904,67157.0,67156.0,0.150826]
[1729586975754,0.01386374,67159.0,67156.0,0.150826]
[1729586976007,0.154904,67157.0,67156.0,0.150826]
[1729586976685,0.159904,67157.0,67156.0,0.150826]
[1729586977133,0.005,67157.0,67156.0,0.150826]
[1729586977372,0.150904,67157.0,67156.0,0.150826]
[1729586977628,0.16577911,67157.0,67156.0,0.150826]
[1729586977843,0.151904,67157.0,67156.0,0.1588539]
[1729586978293,0.150904,67157.0,67156.0,0.1588539]
[1729586978776,0.148904,67157.0,67156.0,0.1588539]
[1729586980121,0.149904,67157.0,67156.0,0.1588539]
[1729586980548,0.148904,67157.0,67156.0,0.1588539]
[1729586980768,0.150904,67157.0,67156.0,0.1588539]
[1729586980990,0.002,67157.0,67156.0,0.1588539]
[1729586981223,0.153904,67157.0,67156.0,0.1588539]
[1729586981701,0.16780007,67157.0,67156.0,0.1588539]
[1729586981916,0.153904,67157.0,67156.0,0.1588539]
[1729586982366,0.16780007,67157.0,67156.0,0.1588539]
[1729586982603,0.153904,67157.0,67156.0,0.1588539]
[1729586983058,0.16780007,67157.0,67156.0,0.1588539]
[1729586983488,0.16280007,67157.0,67156.0,0.1588539]
[1729586983764,0.16380007,67157.0,67156.0,0.1588539]
[1729586984008,0.151904,67157.0,67156.0,0.1588539]
[1729586984239,0.16580007,67157.0,67156.0,0.1588539]
[1729586984906,0.01689607,67157.0,67156.0,0.1588539]
[1729586985130,0.16580007,67157.0,67156.0,0.1588539]
[1729586985346,0.151904,67157.0,67156.0,0.1588539]
[1729586985573,0.16580477,67157.0,67156.0,0.1588539]
[1729586986434,0.01690077,67157.0,67156.0,0.1588539]
[1729586986647,0.16580477,67157.0,67156.0,0.1588539]
[1729586988187,0.01690077,67157.0,67156.0,0.1588539]
[1729586988612,0.16580477,67157.0,67156.0,0.1588539]
[1729586989288,0.16480298,67157.0,67156.0,0.1588539]
[1729586989515,0.21017448,67157.0,67156.0,0.150826]
[1729586989738,0.16580298,67157.0,67156.0,0.150826]
[1729586989957,0.36454599,67157.0,67156.0,0.150826]
[1729586990176,0.27980298,67157.0,67156.0,0.150826]
[1729586990391,0.54986213,67157.0,67156.0,0.150826]
[1729586990628,0.55186213,67157.0,67156.0,0.150826]
[1729586990845,0.55786213,67157.0,67156.0,0.150826]
[1729586991069,0.55286213,67157.0,67156.0,0.150826]
[1729586991296,0.56486213,67157.0,67156.0,0.150826]
[1729586991764,0.64716213,67157.0,67156.0,0.150826]
[1729586991987,0.66116213,67157.0,67156.0,0.150826]
[1729586992424,0.65616213,67157.0,67156.0,0.150826]
[1729586992639,0.67016213,67157.0,67156.0,0.150826]
[1729586993079,0.63216213,67157.0,67156.0,0.150826]
[1729586993293,0.64616213,67157.0,67156.0,0.150826]
[1729586993508,0.66016213,67157.0,67156.0,0.150826]
[1729586996198,0.66573053,67157.0,67156.0,0.150826]
[1729586996844,0.66569659,67157.0,67156.0,0.150826]
[1729587001218,0.65183155,67157.0,67156.0,0.150826]
[1729587001444,0.66568356,67157.0,67156.0,0.150826]
[1729587003325,0.65183155,67157.0,67156.0,0.150826]
[1729587003577,0.56758098,67157.0,67156.0,0.150826]
[1729587003807,0.81535013,67157.0,67156.0,0.150826]
[1729587004766,0.80135013,67157.0,67156.0,0.150826]
[1729587004998,0.81535013,67157.0,67156.0,0.150826]
[1729587005478,0.80135013,67157.0,67156.0,0.150826]
[1729587005721,0.81535013,67157.0,67156.0,0.150826]
[1729587005997,0.80135013,67157.0,67156.0,0.150826]
[1729587006239,0.81535013,67157.0,67156.0,0.150826]
[1729587006478,0.80135013,67157.0,67156.0,0.150826]
[1729587006717,0.81535013,67157.0,67156.0,0.150826]
[1729587008595,0.80135013,67157.0,67156.0,0.150826]
[1729587008821,0.81535013,67157.0,67156.0,0.150826]
[1729587009276,0.78735013,67157.0,67156.0,0.150826]
[1729587009517,0.80135013,67157.0,67156.0,0.150826]
[1729587010211,0.81535013,67157.0,67156.0,0.150826]
[1729587011823,0.8153568,67157.0,67156.0,0.150826]
[1729587014448,0.7656811,67157.0,67156.0,0.150826]
[1729587014670,0.76572502,67157.0,67156.0,0.150826]
[1729587014954,0.76573765,67157.0,67156.0,0.150826]
[1729587015199,0.7657629,67157.0,67156.0,0.150826]
[1729587015454,0.65494866,67157.0,67156.0,0.150826]
[1729587015689,0.43861698,67150.0,67149.0,0.000825]
[1729587015916,0.43861698,67150.0,67141.0,0.22347668]
[1729587015917,0.248938,67142.0,67141.0,0.22347668]
[1729587016151,0.248938,67142.0,67121.0,0.000825]
[1729587016152,0.265949,67137.0,67131.0,0.1717]
[1729587016388,0.632696,67137.0,67126.0,0.0782]
[1729587016644,0.630696,67137.0,67126.0,0.0782]
[1729587016900,0.58638903,67137.0,67126.0,0.0782]
[1729587017150,0.58838903,67137.0,67126.0,0.0782]
[1729587017400,0.63067964,67137.0,67133.0,0.000842]
[1729587017854,0.60238903,67137.0,67133.0,0.000842]
[1729587018292,0.63280523,67137.0,67133.0,0.000842]
[1729587018756,0.63280761,67137.0,67133.0,0.000842]
[1729587018976,0.42556726,67134.0,67133.0,0.000842]
[1729587019203,0.61881543,67134.0,67133.0,0.000842]
[1729587019435,0.65242641,67134.0,67133.0,0.000842]
[1729587019687,0.65242641,67134.0,67121.0,0.000825]
[1729587019688,0.53720252,67124.0,67121.0,0.000825]
[1729587020188,0.58147639,67124.0,67121.0,0.000825]
[1729587020433,0.163982,67122.0,67121.0,0.000825]
[1729587020920,0.263982,67122.0,67121.0,0.000825]
[1729587021666,0.43594115,67122.0,67121.0,0.000825]
[1729587022148,0.44994115,67122.0,67121.0,0.000825]
[1729587022604,0.45194115,67122.0,67121.0,0.000825]
[1729587022841,0.43594115,67122.0,67121.0,0.000825]
[1729587023079,0.46394115,67122.0,67121.0,0.000825]
[1729587023733,0.44994115,67122.0,67121.0,0.000825]
[1729587024213,0.46394115,67122.0,67121.0,0.000825]
[1729587024451,0.60055341,67122.0,67121.0,0.000825]
[1729587024919,0.58655341,67122.0,67121.0,0.000825]
[1729587025159,0.6060095,67122.0,67121.0,0.000825]
[1729587025409,0.5920095,67122.0,67121.0,0.000825]
[1729587025653,0.5780095,67122.0,67121.0,0.000825]
[1729587025893,0.45539724,67122.0,67121.0,0.000825]
[1729587026129,0.46739724,67122.0,67121.0,0.000825]
[1729587026388,0.46939724,67122.0,67121.0,0.000825]
[1729587026635,0.44139724,67122.0,67121.0,0.000825]
[1729587028043,0.45439724,67122.0,67121.0,0.000825]
[1729587029139,0.45539724,67122.0,67121.0,0.000825]
[1729587029560,0.46939724,67122.0,67121.0,0.000825]
[1729587029747,0.48339724,67122.0,67121.0,0.000825]
[1729587030388,0.6200095,67122.0,67121.0,0.000825]
[1729587030596,0.6220095,67122.0,67121.0,0.000825]
[1729587030807,0.7034095,67122.0,67121.0,0.000825]
[1729587031009,0.6894095,67122.0,67121.0,0.000825]
[1729587031226,0.7034095,67122.0,67121.0,0.000825]
[1729587031674,0.6894095,67122.0,67121.0,0.000825]
[1729587031984,0.6754095,67122.0,67121.0,0.000825]
[1729587032403,0.6894095,67122.0,67121.0,0.000825]
[1729587032621,0.287009,67110.0,67109.0,0.22265268]
[1729587032830,0.57258041,67110.0,67109.0,0.22265268]
[1729587033035,0.57258041,67110.0,67109.0,0.24056198]
[1729587033257,0.57258041,67110.0,67102.0,0.22265268]
[1729587033258,0.287011,67109.0,67102.0,0.22265268]
[1729587033482,0.287031,67100.0,67089.0,0.1783]
[1729587033691,0.56025552,67100.0,67089.0,0.1783]
[1729587033907,0.56225552,67100.0,67089.0,0.1783]
[1729587034589,0.70921467,67100.0,67089.0,0.1783]
[1729587035004,0.72121467,67100.0,67089.0,0.1783]
[1729587035566,0.72121467,67100.0,67088.0,0.22349568]
[1729587036108,0.73521467,67100.0,67088.0,0.22349568]
[1729587036982,0.72121467,67100.0,67088.0,0.22349568]
[1729587037216,0.72321467,67100.0,67088.0,0.22349568]
[1729587037646,0.73721467,67100.0,67088.0,0.22349568]
[1729587038078,0.72321467,67100.0,67088.0,0.22349568]
[1729587038286,0.73921467,67100.0,67088.0,0.22349568]
[1729587038501,0.73721467,67100.0,67088.0,0.22349568]
[1729587038682,0.72321467,67100.0,67088.0,0.22349568]
[1729587038887,0.70921467,67100.0,67088.0,0.22349568]
[1729587039087,0.72521467,67100.0,67088.0,0.22349568]
[1729587039329,0.74462969,67100.0,67088.0,0.22349568]
[1729587039768,0.75662969,67100.0,67088.0,0.22349568]
[1729587040438,0.60601743,67100.0,67088.0,0.22349568]
[1729587040866,0.43405828,67100.0,67099.0,0.078543]
[1729587040867,0.282031,67100.0,67099.0,0.078543]
[1729587041137,0.296031,67100.0,67099.0,0.078543]
[1729587041622,0.291031,67100.0,67099.0,0.078543]
[1729587041864,0.277031,67100.0,67099.0,0.09658614]
[1729587042115,0.107,67100.0,67099.0,0.09658614]
[1729587042380,0.013,67100.0,67099.0,0.34551914]
[1729587042636,0.013,67100.0,67099.0,0.19648614]
[1729587042913,0.007,67100.0,67099.0,0.34551914]
[1729587043201,0.01,67100.0,67099.0,0.34551914]
[1729587043400,0.149026,67103.0,67099.0,0.34551914]
[1729587043674,0.44462026,67113.0,67099.0,0.19648614]
[1729587043675,0.005,67111.0,67099.0,0.19648614]
[1729587043916,0.001,67100.0,67099.0,0.19648614]
[1729587044158,0.298038,67106.0,67099.0,0.19648614]
[1729587044159,0.149027,67102.0,67099.0,0.19648614]
[1729587044389,0.298038,67106.0,67099.0,0.19648614]
[1729587044645,0.151026,67103.0,67099.0,0.19648614]
[1729587044874,0.002,67103.0,67101.0,0.149028]
[1729587045105,0.005,67111.0,67099.0,0.19648614]
[1729587045356,0.149024,67104.0,67100.0,0.01808898]
[1729587045586,0.298027,67108.0,67100.0,0.01808898]
[1729587045587,0.004,67103.0,67100.0,0.01808898]
[1729587045819,0.149026,67103.0,67100.0,0.01808898]
[1729587046279,0.004,67103.0,67100.0,0.01808898]
[1729587046506,0.105,67112.0,67100.0,0.01808898]
[1729587046734,0.006,67103.0,67100.0,0.01808898]
[1729587047027,0.149025,67103.0,67100.0,0.01808898]
[1729587047270,0.149029,67101.0,67100.0,0.01808898]
[1729587048516,0.149031,67100.0,67099.0,0.178443]
[1729587049749,0.15003,67101.0,67099.0,0.178443]
[1729587049963,0.149031,67100.0,67099.0,0.178443]
[1729587050395,0.149031,67100.0,67099.0,0.179443]
[1729587051556,0.149031,67100.0,67099.0,0.178443]
[1729587051777,0.13661226,67110.0,67099.0,0.178443]
[1729587051778,0.149021,67105.0,67100.0,0.14903]
[1729587051997,0.001,67101.0,67099.0,0.327474]
[1729587052431,0.001,67101.0,67100.0,0.328731]
[1729587052860,0.14902,67105.0,67102.0,0.1789]
[1729587053083,0.005,67105.0,67102.0,0.327925]
[1729587053301,0.005,67105.0,67103.0,0.01823053]
[1729587053302,0.149021,67105.0,67103.0,0.01823053]
[1729587053519,0.298037,67106.0,67103.0,0.01823053]
[1729587053711,0.149022,67104.0,67103.0,0.01823053]
[1729587055029,0.149024,67103.0,67102.0,0.1789]
[1729587056551,0.152024,67103.0,67102.0,0.1789]
[1729587057655,0.150024,67103.0,67102.0,0.1789]
[1729587058072,0.153024,67103.0,67102.0,0.1789]
[1729587058993,0.004,67103.0,67102.0,0.1789]
[1729587059206,0.153024,67103.0,67102.0,0.1789]
[1729587059905,0.004,67103.0,67102.0,0.1789]
[1729587060129,0.003,67103.0,67102.0,0.327926]
[1729587060349,0.004,67103.0,67102.0,0.1789]
[1729587060799,0.14902,67105.0,67102.0,0.1789]
[1729587061043,0.101652,67108.0,67102.0,0.1789]
[1729587061480,0.003,67103.0,67102.0,0.1789]
[1729587061964,0.149022,67104.0,67102.0,0.1789]
[1729587062631,0.149024,67103.0,67102.0,0.1789]
[1729587064152,0.298033,67107.0,67102.0,0.1789]
[1729587064369,0.149024,67103.0,67102.0,0.1789]
[1729587065030,0.001,67103.0,67102.0,0.1789]
[1729587065248,0.150024,67103.0,67102.0,0.1789]
[1729587065473,0.149024,67103.0,67102.0,0.1789]
[1729587065688,0.149024,67103.0,67102.0,0.1799]
[1729587067194,0.149024,67103.0,67102.0,0.1938834]
[1729587067399,0.149024,67103.0,67102.0,0.1799]
[1729587068248,0.149024,67103.0,67102.0,0.1938834]
[1729587068463,0.149024,67103.0,67102.0,0.1799]
[1729587068933,0.149024,67103.0,67102.0,0.1789]
[1729587069343,0.154024,67103.0,67102.0,0.1789]
[1729587069762,0.157024,67103.0,67102.0,0.1789]
[1729587070223,0.154024,67103.0,67102.0,0.1789]
[1729587070432,0.157024,67103.0,67102.0,0.0963]
[1729587070640,0.157024,67103.0,67100.0,0.000826]
[1729587070641,0.149029,67101.0,67100.0,0.000826]
[1729587071098,0.149029,67101.0,67100.0,0.01481613]
[1729587071337,0.38564126,67101.0,67100.0,0.01481613]
[1729587071815,0.38564126,67101.0,67100.0,0.000826]
[1729587072028,0.38864126,67101.0,67100.0,0.000826]
[1729587072246,0.43283149,67101.0,67100.0,0.000826]
[1729587072702,0.60679064,67101.0,67100.0,0.000826]
[1729587073142,0.61679064,67101.0,67100.0,0.000826]
[1729587073359,0.60679064,67101.0,67100.0,0.000826]
[1729587073784,0.60779064,67101.0,67100.0,0.000826]
[1729587074228,0.60679064,67101.0,67100.0,0.000826]
[1729587074688,0.61479064,67101.0,67100.0,0.000826]
[1729587075113,0.61779064,67101.0,67100.0,0.000826]
[1729587075570,0.30121923,67101.0,67100.0,0.000826]
[1729587075795,0.167029,67101.0,67100.0,0.181926]
[1729587076013,0.018,67101.0,67100.0,0.181926]
[1729587076235,0.018,67101.0,67100.0,0.19593855]
[1729587076236,0.167029,67101.0,67100.0,0.19593855]
[1729587076694,0.159029,67101.0,67100.0,0.181926]
[1729587076921,0.159029,67101.0,67100.0,0.19593855]
[1729587077144,0.159029,67101.0,67100.0,0.11403855]
[1729587077145,0.157029,67101.0,67100.0,0.11403855]
[1729587077378,0.157029,67101.0,67100.0,0.01483855]
[1729587077601,0.157029,67101.0,67100.0,0.000826]
[1729587077843,0.149029,67101.0,67100.0,0.01483391]
[1729587078504,0.151029,67101.0,67100.0,0.01483391]
[1729587078721,0.002,67101.0,67100.0,0.01483391]
[1729587078940,0.151029,67101.0,67100.0,0.01483391]
[1729587079632,0.002,67101.0,67100.0,0.01483391]
[1729587079877,0.151029,67101.0,67100.0,0.01483391]
[1729587080342,0.002,67101.0,67100.0,0.01483391]
[1729587081711,0.149029,67101.0,67100.0,0.01483391]
[1729587082181,0.149029,67101.0,67100.0,0.01583391]
[1729587082415,0.149029,67101.0,67100.0,0.01483391]
[1729587082649,0.149029,67101.0,67100.0,0.01683391]
[1729587083606,0.149029,67101.0,67100.0,0.01783391]
[1729587084114,0.149029,67101.0,67100.0,0.01683391]
[1729587084624,0.149029,67101.0,67100.0,0.01483391]
[1729587085087,0.153029,67101.0,67100.0,0.01483391]
[1729587085363,0.149029,67101.0,67100.0,0.01483391]
[1729587085602,0.153029,67101.0,67100.0,0.01483391]
[1729587085854,0.155029,67101.0,67100.0,0.01483391]
[1729587086339,0.19729208,67101.0,67100.0,0.01483391]
[1729587086594,0.153029,67101.0,67100.0,0.01483391]
[1729587086813,0.155029,67101.0,67100.0,0.01483391]
[1729587087070,0.19929208,67101.0,67100.0,0.01483391]
[1729587087318,0.19936448,67101.0,67100.0,0.01483391]
[1729587087556,0.155029,67101.0,67100.0,0.01483391]
[1729587087811,0.19936564,67101.0,67100.0,0.01483391]
[1729587088268,0.155029,67101.0,67100.0,0.01483391]
[1729587088753,0.19936293,67101.0,67100.0,0.01483391]
[1729587089274,0.155029,67101.0,67100.0,0.01483391]
[1729587089520,0.19935824,67101.0,67100.0,0.01483391]
[1729587089990,0.19935874,67101.0,67100.0,0.01483391]
[1729587090413,0.155029,67101.0,67100.0,0.01483391]
[1729587090837,0.19935874,67101.0,67100.0,0.01483391]
[1729587091465,0.155029,67101.0,67100.0,0.01483391]
[1729587092783,0.155029,67101.0,67100.0,0.000826]
[1729587093009,0.155029,67101.0,67100.0,0.01484002]
[1729587094115,0.47654126,67101.0,67100.0,0.01484002]
[1729587094344,0.60937922,67101.0,67100.0,0.000826]
[1729587095008,0.60337922,67101.0,67100.0,0.000826]
[1729587095233,0.60937922,67101.0,67100.0,0.000826]
[1729587095473,0.60937922,67101.0,67100.0,1.000826]
[1729587095697,0.60737922,67101.0,67100.0,1.000826]
[1729587095921,0.60937922,67101.0,67100.0,1.01483892]
[1729587096156,0.60437922,67101.0,67100.0,1.01483892]
[1729587096397,0.79436515,67101.0,67100.0,1.01483892]
[1729587096620,0.79336515,67101.0,67100.0,1.01483892]
[1729587096927,0.79536515,67101.0,67100.0,1.01483892]
[1729587097958,0.79136515,67101.0,67100.0,1.01483892]
[1729587098230,0.79636515,67101.0,67100.0,1.01483892]
[1729587098472,0.79536515,67101.0,67100.0,1.01483892]
[1729587098920,1.03988072,67101.0,67100.0,1.01483892]
[1729587099183,0.89246515,67101.0,67100.0,1.01483892]
[1729587099398,0.92046515,67101.0,67100.0,1.01483892]
[1729587099637,0.89546515,67101.0,67100.0,1.01483892]
[1729587099869,0.88146515,67101.0,67100.0,1.01483892]
[1729587100101,0.89546515,67101.0,67100.0,1.01483892]
[1729587100322,0.89546515,67101.0,67100.0,1.01016794]
[1729587101043,0.90946515,67101.0,67100.0,0.86113794]
[1729587101518,1.04208018,67101.0,67100.0,0.86113794]
[1729587101765,0.92346515,67101.0,67100.0,0.74191394]
[1729587101999,0.88146515,67101.0,67100.0,0.71210794]
[1729587102196,0.90946515,67101.0,67100.0,0.71210794]
[1729587102707,0.89546515,67101.0,67100.0,0.69495112]
[1729587102931,0.92346515,67101.0,67100.0,0.69495112]
[1729587103419,0.90946515,67101.0,67100.0,0.69495112]
[1729587103886,0.92346515,67101.0,67100.0,0.69495112]
[1729587104810,0.89546515,67101.0,67100.0,0.69495112]
[1729587105038,0.90946515,67101.0,67100.0,0.69495112]
[1729587105509,0.89546515,67101.0,67100.0,0.69495112]
[1729587105747,0.90946515,67101.0,67100.0,0.69495112]
[1729587105984,0.90946515,67101.0,67100.0,0.69577712]
[1729587106218,0.89546515,67101.0,67100.0,0.69577712]
[1729587106715,0.90946515,67101.0,67100.0,0.69577712]
[1729587107719,0.2541,67069.0,67057.0,0.0969]
[1729587107974,0.3958385,67069.0,67057.0,0.0969]
[1729587108482,0.4238385,67069.0,67068.0,0.000843]
[1729587108927,0.3858535,67062.0,67061.0,0.21849568]
[1729587109154,0.3908535,67062.0,67061.0,0.21849568]
[1729587109381,0.3908535,67062.0,67057.0,0.0969]
[1729587109382,0.254124,67058.0,67057.0,0.0969]
[1729587110597,0.3908625,67058.0,67057.0,0.0969]
[1729587111592,0.3998625,67058.0,67057.0,0.0969]
[1729587112100,0.4098625,67058.0,67057.0,0.0969]
[1729587112333,0.3908625,67058.0,67057.0,0.0969]
[1729587112562,0.4148625,67058.0,67057.0,0.0969]
[1729587113489,0.4038625,67058.0,67057.0,0.0969]
[1729587114015,0.277129,67056.0,67055.0,0.000843]